bitfinex/quotes_BTCUSD_20250922
["timestamp","ask_amount","ask_price","bid_price","bid_amount"]
[1758518914887,0.0014,114740.0,114730.0,0.90365375]
[1758518924925,0.0014,114740.0,114730.0,1.24365375]
[1758518926835,0.0014,114740.0,114730.0,0.97093375]
[1758518927042,0.0014,114740.0,114730.0,1.24361375]
[1758518930669,0.0014,114740.0,114730.0,0.97093375]
[1758518930868,0.0014,114740.0,114730.0,1.24361375]
[1758518931321,0.0014,114740.0,114730.0,1.26981479]
[1758518933950,0.0014,114740.0,114730.0,0.99713479]
[1758518934461,0.0014,114740.0,114730.0,1.26977479]
[1758518940044,0.0014,114740.0,114730.0,0.99713479]
[1758518940258,0.0014,114740.0,114730.0,1.26977479]
[1758518950506,0.0014,114740.0,114730.0,0.99713479]
[1758518950966,0.0014,114740.0,114730.0,1.26973479]
[1758518951335,0.0014,114740.0,114730.0,0.99713479]
[1758518951610,0.0014,114740.0,114730.0,1.26973479]
[1758518953784,0.0014,114740.0,114730.0,0.99713479]
[1758518954574,0.0014,114740.0,114730.0,1.26973479]
[1758518958194,0.0014,114740.0,114730.0,0.99713479]
[1758518958604,0.0014,114740.0,114730.0,1.26973479]
[1758518967601,0.0014,114740.0,114730.0,0.99713479]
[1758518968016,0.0014,114740.0,114730.0,1.26969479]
[1758518973119,0.02504,114740.0,114730.0,1.24008479]
[1758518973383,0.2878625,114740.0,114730.0,1.24008479]
[1758518973709,0.2878625,114740.0,114730.0,0.90008479]
[1758518975472,0.2878625,114740.0,114730.0,0.87388375]
[1758518975674,0.550685,114740.0,114730.0,0.60132375]
[1758518975874,0.2882925,114740.0,114730.0,0.60132375]
[1758518976071,0.02547,114740.0,114730.0,0.60132375]
[1758518976356,0.2882925,114740.0,114730.0,0.60132375]
[1758518976815,0.2878625,114740.0,114730.0,0.60132375]
[1758518977045,0.2882925,114740.0,114730.0,0.60132375]
[1758518980153,0.02547,114740.0,114730.0,0.60132375]
[1758518980363,0.2882925,114740.0,114730.0,0.60132375]
[1758518981718,0.2878625,114740.0,114730.0,0.60132375]
[1758518983913,0.02504,114740.0,114730.0,0.60132375]
[1758518984419,0.2976,114740.0,114730.0,0.60132375]
[1758518986393,0.02504,114740.0,114730.0,0.60132375]
[1758518986710,0.29756,114740.0,114730.0,0.60132375]
[1758518987493,0.5374225,114740.0,114730.0,0.56344389]
[1758518987717,0.5603825,114740.0,114730.0,0.56344389]
[1758518987906,0.5608125,114740.0,114730.0,0.56344389]
[1758518988102,0.58701778,114740.0,114730.0,0.56344389]
[1758518989397,0.31406778,114740.0,114730.0,0.56344389]
[1758518989625,0.58658778,114740.0,114730.0,0.56344389]
[1758518991869,0.31406778,114740.0,114730.0,0.56344389]
[1758518992068,0.58658778,114740.0,114730.0,0.56344389]
[1758518992287,0.58728778,114740.0,114730.0,0.56344389]
[1758518999624,0.58728778,114740.0,114730.0,0.56546389]
[1758518999824,0.58728778,114740.0,114730.0,0.56840389]
[1758519000065,0.31476778,114740.0,114730.0,0.56840389]
[1758519000211,0.58728778,114740.0,114730.0,0.56840389]
[1758519001232,1.04422065,114740.0,114730.0,0.56344389]
[1758519001433,1.04422065,114740.0,114730.0,0.38912157]
[1758519001639,1.0254274,114740.0,114730.0,0.38912157]
[1758519002397,1.0254274,114740.0,114730.0,0.004]
[1758519003661,1.0254274,114740.0,114730.0,0.003]
[1758519003841,0.17432232,114730.0,114720.0,0.47418584]
[1758519004063,0.46136482,114730.0,114720.0,0.55945551]
[1758519004575,0.4875741,114730.0,114720.0,0.55945551]
[1758519005086,0.49640924,114730.0,114720.0,0.55945551]
[1758519005311,0.49640924,114730.0,114720.0,0.56245551]
[1758519006894,0.23358674,114730.0,114720.0,0.56245551]
[1758519007122,0.49640924,114730.0,114720.0,0.56245551]
[1758519007568,0.49640924,114730.0,114720.0,0.38812157]
[1758519008206,0.76892924,114730.0,114720.0,0.38812157]
[1758519008634,0.85462891,114730.0,114720.0,0.38812157]
[1758519009514,0.85462891,114730.0,114720.0,0.003]
[1758519010486,0.49683924,114730.0,114720.0,0.003]
[1758519010691,0.76935924,114730.0,114720.0,0.003]
[1758519011783,0.49683924,114730.0,114720.0,0.003]
[1758519011988,0.76935924,114730.0,114720.0,0.003]
[1758519013632,0.49683924,114730.0,114720.0,0.003]
[1758519013840,0.76935924,114730.0,114720.0,0.003]
[1758519014252,0.49683924,114730.0,114720.0,0.003]
[1758519014462,0.76935924,114730.0,114720.0,0.003]
[1758519015640,0.49683924,114730.0,114720.0,0.003]
[1758519015955,0.76935924,114730.0,114720.0,0.003]
[1758519016379,0.49683924,114730.0,114720.0,0.003]
[1758519016584,0.76935924,114730.0,114720.0,0.003]
[1758519016787,0.49683924,114730.0,114720.0,0.003]
[1758519016987,0.76935924,114730.0,114720.0,0.003]
[1758519017437,0.49683924,114730.0,114720.0,0.003]
[1758519017635,0.76935924,114730.0,114720.0,0.003]
[1758519018437,0.76892924,114730.0,114720.0,0.003]
[1758519018641,0.7691477,114730.0,114720.0,0.003]
[1758519018797,0.7695777,114730.0,114720.0,0.003]
[1758519018999,0.17433751,114720.0,114710.0,0.48593224]
[1758519019214,0.55629847,114720.0,114710.0,0.57120191]
[1758519019435,0.55629847,114720.0,114710.0,0.57330191]
[1758519019636,0.53161847,114720.0,114710.0,0.56458428]
[1758519019884,0.55697847,114720.0,114710.0,0.56157428]
[1758519020089,0.55697847,114720.0,114710.0,0.38512157]
[1758519020291,0.58319014,114720.0,114710.0,0.38512157]
[1758519020503,0.58319014,114720.0,114710.0,0.35496967]
[1758519020928,0.94097981,114720.0,114710.0,0.2697]
[1758519021128,1.1201811,114720.0,114710.0,0.2697]
[1758519021889,1.1191811,114720.0,114710.0,0.2697]
[1758519022085,0.8506611,114720.0,114710.0,0.2697]
[1758519022309,1.1231811,114720.0,114710.0,0.2697]
[1758519022926,0.8506611,114720.0,114710.0,0.2697]
[1758519023153,1.12930175,114720.0,114710.0,0.2697]
[1758519023738,0.17435271,114710.0,114690.0,0.50866416]
[1758519023942,0.46207367,114710.0,114700.0,0.08526967]
[1758519024142,0.73527367,114710.0,114700.0,0.08526967]
[1758519024446,0.76148942,114710.0,114700.0,0.08736967]
[1758519026354,0.76761017,114710.0,114700.0,0.08736967]
[1758519026552,0.49509017,114710.0,114700.0,0.08736967]
[1758519026755,0.76761017,114710.0,114700.0,0.09037967]
[1758519027919,0.82819984,114710.0,114700.0,0.08526967]
[1758519028141,0.17436791,114700.0,114690.0,0.26974704]
[1758519028391,0.18048866,114700.0,114690.0,0.08531671]
[1758519028641,0.20522866,114700.0,114690.0,0.09053671]
[1758519028865,0.46826962,114700.0,114690.0,0.09053671]
[1758519029088,0.74166962,114700.0,114690.0,0.28948982]
[1758519029320,0.74166962,114700.0,114690.0,0.11510671]
[1758519029531,0.76856779,114700.0,114690.0,0.11510671]
[1758519029740,0.76788779,114700.0,114690.0,0.11510671]
[1758519030561,0.76856779,114700.0,114690.0,0.08744671]
[1758519031389,0.76956779,114700.0,114690.0,0.08744671]
[1758519034054,0.76956779,114700.0,114690.0,0.09053671]
[1758519034898,0.76956779,114700.0,114690.0,4.704e-05]
[1758519035111,1.06956779,114700.0,114690.0,4.704e-05]
[1758519036944,1.06999779,114700.0,114690.0,4.704e-05]
[1758519038036,1.40999779,114700.0,114690.0,4.704e-05]
[1758519038303,1.67303875,114700.0,114690.0,4.704e-05]
[1758519038515,1.41007779,114700.0,114690.0,4.704e-05]
[1758519038722,1.39963875,114700.0,114690.0,4.704e-05]
[1758519038932,1.33311875,114700.0,114690.0,4.704e-05]
[1758519039144,1.75838842,114700.0,114690.0,4.704e-05]
[1758519039902,1.75834842,114700.0,114690.0,4.704e-05]
[1758519044685,1.22186746,114700.0,114690.0,4.704e-05]
[1758519044928,1.75822842,114700.0,114690.0,4.704e-05]
[1758519046318,1.82045573,114700.0,114690.0,4.704e-05]
[1758519046541,1.84675791,114700.0,114690.0,4.704e-05]
[1758519046983,1.83675849,114700.0,114690.0,4.704e-05]
[1758519047173,1.84490993,114700.0,114690.0,4.704e-05]
[1758519047738,1.84890993,114700.0,114690.0,4.704e-05]
[1758519048151,1.85090993,114700.0,114690.0,4.704e-05]
[1758519048579,1.84890993,114700.0,114690.0,4.704e-05]
[1758519049127,1.85290993,114700.0,114690.0,4.704e-05]
[1758519049515,1.85294993,114700.0,114690.0,4.704e-05]
[1758519049734,1.85295175,114700.0,114690.0,4.704e-05]
[1758519049957,1.57959175,114700.0,114690.0,4.704e-05]
[1758519050158,1.85295175,114700.0,114690.0,4.704e-05]
[1758519050582,0.17438311,114690.0,114680.0,0.07742907]
[1758519050783,1.45590854,114690.0,114680.0,0.07789961]
[1758519051013,1.43960578,114690.0,114680.0,0.07789961]
[1758519051192,1.5411847,114690.0,114680.0,0.07789961]
[1758519051411,1.56741023,114690.0,114680.0,0.07789961]
[1758519051975,1.30209023,114690.0,114680.0,0.07789961]
[1758519052175,1.57541023,114690.0,114680.0,0.07789961]
[1758519053357,1.57540702,114690.0,114680.0,0.07789961]
[1758519053598,1.57583702,114690.0,114680.0,0.07789961]
[1758519055677,1.30208702,114690.0,114680.0,0.07789961]
[1758519056273,1.57528702,114690.0,114680.0,0.07789961]
[1758519057088,1.58344931,114690.0,114680.0,0.07789961]
[1758519057285,1.57528702,114690.0,114680.0,0.07789961]
[1758519057499,1.5752912,114690.0,114680.0,0.07789961]
[1758519058155,1.58345474,114690.0,114680.0,0.07789961]
[1758519058357,1.5752912,114690.0,114680.0,0.07789961]
[1758519059204,1.58345542,114690.0,114680.0,0.07789961]
[1758519059364,1.5752912,114690.0,114680.0,0.07789961]
[1758519060395,1.3020912,114690.0,114680.0,0.07789961]
[1758519060721,1.21682153,114690.0,114680.0,0.07789961]
[1758519060934,1.48994153,114690.0,114680.0,0.07789961]
[1758519063134,1.4981103,114690.0,114680.0,0.07789961]
[1758519063989,1.4983103,114690.0,114680.0,0.07789961]
[1758519065929,1.56134773,114690.0,114680.0,0.07789961]
[1758519066137,1.67291958,114690.0,114680.0,0.07789961]
[1758519069097,1.67248958,114690.0,114680.0,0.07789961]
[1758519069647,1.39916958,114690.0,114680.0,0.07789961]
[1758519069838,1.6461474,114690.0,114680.0,0.07789961]
[1758519071249,1.3728674,114690.0,114680.0,0.07789961]
[1758519071421,1.6461474,114690.0,114680.0,0.07789961]
[1758519071621,1.3728674,114690.0,114680.0,0.07789961]
[1758519072048,1.6461074,114690.0,114680.0,0.07789961]
[1758519073048,0.84678548,114690.0,114680.0,0.07789961]
[1758519073248,1.08440644,114690.0,114680.0,0.08299961]
[1758519073427,1.53537773,114690.0,114680.0,0.10626961]
[1758519073818,1.91269773,114690.0,114680.0,0.10626961]
[1758519074241,1.93699773,114690.0,114680.0,0.10626961]
[1758519075776,1.13771581,114690.0,114680.0,0.10626961]
[1758519075969,1.93707773,114690.0,114680.0,0.10626961]
[1758519076269,2.0223474,114690.0,114680.0,0.10626961]
[1758519077158,2.0230274,114690.0,114680.0,0.07789961]
[1758519079127,2.0230274,114690.0,114680.0,0.08002961]
[1758519079701,2.02305117,114690.0,114680.0,0.08002961]
[1758519080754,2.02354273,114690.0,114680.0,0.08002961]
[1758519080936,2.02350273,114690.0,114680.0,0.08002961]
[1758519081073,2.01532315,114690.0,114680.0,0.08002961]
[1758519081648,2.01464315,114690.0,114680.0,0.08299961]
[1758519081897,2.01532315,114690.0,114680.0,0.08299961]
[1758519083098,1.9990139,114690.0,114680.0,0.08299961]
[1758519083641,1.9990139,114690.0,114680.0,0.08002961]
[1758519083863,1.9990139,114690.0,114680.0,0.07789961]
[1758519095530,1.9987339,114690.0,114680.0,0.08005961]
[1758519099112,1.9987339,114690.0,114680.0,0.08325961]
[1758519099547,1.9986139,114690.0,114680.0,0.08325961]
[1758519100699,1.29038042,114690.0,114680.0,0.08325961]
[1758519100891,1.91266423,114690.0,114680.0,0.08325961]
[1758519101302,1.91334423,114690.0,114680.0,0.08325961]
[1758519101735,1.91334423,114690.0,114680.0,0.08005961]
[1758519107844,1.91334423,114690.0,114680.0,0.07789961]
[1758519111665,2.20336315,114690.0,114680.0,0.07789961]
[1758519111873,2.28863282,114690.0,114680.0,0.07789961]
[1758519113335,2.28820282,114690.0,114680.0,0.07789961]
[1758519114126,2.28863282,114690.0,114680.0,0.07789961]
[1758519114361,2.31319063,114690.0,114680.0,0.07789961]
[1758519116090,2.04035063,114690.0,114680.0,0.07789961]
[1758519116289,2.31315063,114690.0,114680.0,0.07789961]
[1758519116694,2.31272063,114690.0,114680.0,0.07789961]
[1758519117250,2.3045348,114690.0,114680.0,0.07789961]
[1758519118938,2.0317348,114690.0,114680.0,0.07789961]
[1758519119147,2.3045348,114690.0,114680.0,0.07789961]
[1758519120850,2.0317348,114690.0,114680.0,0.07789961]
[1758519121058,2.3045348,114690.0,114680.0,0.07789961]
[1758519123122,2.30444676,114690.0,114680.0,0.07789961]
[1758519124360,2.21917709,114690.0,114680.0,0.07789961]
[1758519124989,1.93951837,114690.0,114680.0,0.07789961]
[1758519130176,1.95588573,114690.0,114680.0,0.07789961]
[1758519130424,1.93951837,114690.0,114680.0,0.07789961]
[1758519131318,1.93952155,114690.0,114680.0,0.07789961]
[1758519132198,2.02479122,114690.0,114680.0,0.07789961]
[1758519134667,2.30444655,114690.0,114680.0,0.07789961]
[1758519135587,2.03164655,114690.0,114680.0,0.07789961]
[1758519136002,2.30444655,114690.0,114680.0,0.07789961]
[1758519139426,2.04934523,114690.0,114680.0,0.07789961]
[1758519140324,2.61306197,114690.0,114680.0,0.07789961]
[1758519140815,2.34997727,114690.0,114680.0,0.07789961]
[1758519141261,2.34697727,114690.0,114680.0,0.07789961]
[1758519141511,2.34197727,114690.0,114680.0,0.07789961]
[1758519141720,2.35197217,114690.0,114680.0,0.07789961]
[1758519142666,2.40197217,114690.0,114680.0,0.07789961]
[1758519144131,2.40201217,114690.0,114680.0,0.07789961]
[1758519148568,2.12917217,114690.0,114680.0,0.07789961]
[1758519148774,2.37523999,114690.0,114680.0,0.07789961]
[1758519150620,2.10243999,114690.0,114680.0,0.07789961]
[1758519150836,2.46717999,114690.0,114680.0,0.07789961]
[1758519151832,2.46713999,114690.0,114680.0,0.07789961]
[1758519152463,2.19429999,114690.0,114680.0,0.07789961]
[1758519152666,2.46713999,114690.0,114680.0,0.07789961]
[1758519154752,1.94032447,114690.0,114680.0,0.07789961]
[1758519154956,2.37523999,114690.0,114680.0,0.07789961]
[1758519155351,2.10243999,114690.0,114680.0,0.07789961]
[1758519155524,2.37523999,114690.0,114680.0,0.07789961]
[1758519155727,2.37527999,114690.0,114680.0,0.07789961]
[1758519156161,2.32527999,114690.0,114680.0,0.07789961]
[1758519156394,2.37527999,114690.0,114680.0,0.07789961]
[1758519156907,2.37523999,114690.0,114680.0,0.07789961]
[1758519157169,2.10243999,114690.0,114680.0,0.07789961]
[1758519157378,2.37523206,114690.0,114680.0,0.07789961]
[1758519157929,2.10243206,114690.0,114680.0,0.07789961]
[1758519158125,2.37523206,114690.0,114680.0,0.07789961]
[1758519158586,2.10243206,114690.0,114680.0,0.07789961]
[1758519158787,2.37523206,114690.0,114680.0,0.07789961]
[1758519160280,2.36910213,114690.0,114680.0,0.07789961]
[1758519160485,2.37523253,114690.0,114680.0,0.07789961]
[1758519161045,2.37527253,114690.0,114680.0,0.07789961]
[1758519166277,2.37527253,114690.0,114680.0,0.07984961]
[1758519166517,2.75267253,114690.0,114680.0,0.07789961]
[1758519167588,2.70267253,114690.0,114680.0,0.07789961]
[1758519167801,2.75267253,114690.0,114680.0,0.07789961]
[1758519175559,2.70267253,114690.0,114680.0,0.07789961]
[1758519175772,2.75267253,114690.0,114680.0,0.07789961]
[1758519179146,2.77897471,114690.0,114680.0,0.07789961]
[1758519179344,2.77940471,114690.0,114680.0,0.07789961]
[1758519179979,2.72940471,114690.0,114680.0,0.07789961]
[1758519180196,2.77897471,114690.0,114680.0,0.07789961]
[1758519180621,2.77898227,114690.0,114680.0,0.07789961]
[1758519180837,2.72898227,114690.0,114680.0,0.07789961]
[1758519181058,2.77898227,114690.0,114680.0,0.07789961]
[1758519181275,2.77941227,114690.0,114680.0,0.07789961]
[1758519182806,2.77898227,114690.0,114680.0,0.07789961]
[1758519187384,2.77899293,114690.0,114680.0,0.07789961]
[1758519189442,1.10408826,114680.0,114670.0,0.028]
[1758519189630,1.51224986,114680.0,114670.0,0.028]
[1758519189803,1.51224986,114680.0,114670.0,0.03006]
[1758519190012,1.53719986,114680.0,114670.0,0.03006]
[1758519190197,1.55087523,114680.0,114670.0,0.03006]
[1758519190632,1.57710591,114680.0,114670.0,0.03006]
[1758519190826,1.58410591,114680.0,114670.0,0.03006]
[1758519191233,1.58410493,114680.0,114670.0,0.03006]
[1758519192286,1.58710493,114680.0,114670.0,0.03006]
[1758519192436,1.58710285,114680.0,114670.0,0.03006]
[1758519193260,1.68138285,114680.0,114670.0,0.03006]
[1758519193705,1.65643285,114680.0,114670.0,0.03006]
[1758519196207,1.68128285,114680.0,114670.0,0.03006]
[1758519196399,1.68126789,114680.0,114670.0,0.03006]
[1758519197638,1.68126376,114680.0,114670.0,0.03006]
[1758519198036,2.05866376,114680.0,114670.0,0.03006]
[1758519199060,2.05866352,114680.0,114670.0,0.03006]
[1758519200711,2.5853665,114680.0,114670.0,0.03006]
[1758519200935,2.31256739,114680.0,114670.0,0.03006]
[1758519201098,2.27085163,114680.0,114670.0,0.03006]
[1758519203018,2.24631052,114680.0,114670.0,0.03006]
[1758519203220,2.27085615,114680.0,114670.0,0.03006]
[1758519204587,2.29570615,114680.0,114670.0,0.03006]
[1758519206399,2.02290615,114680.0,114670.0,0.03006]
[1758519206616,2.29570615,114680.0,114670.0,0.03006]
[1758519209488,2.55906973,114680.0,114670.0,0.03006]
[1758519210591,1.01302955,114680.0,114670.0,0.02989]
[1758519210799,0.98582955,114680.0,114670.0,0.02989]
[1758519210996,1.249195,114680.0,114670.0,0.02989]
[1758519211196,1.88101165,114680.0,114670.0,0.02989]
[1758519211376,1.60128511,114680.0,114670.0,0.02989]
[1758519211574,1.86464869,114680.0,114670.0,0.02989]
[1758519213182,1.60128511,114680.0,114670.0,0.02989]
[1758519213600,1.86464869,114680.0,114670.0,0.02989]
[1758519213793,1.60128511,114680.0,114670.0,0.02989]
[1758519214888,0.85408679,114680.0,114670.0,0.22473501]
[1758519215095,1.12075068,114680.0,114670.0,0.22473501]
[1758519215233,0.78075068,114680.0,114670.0,0.22473501]
[1758519215447,0.78075068,114680.0,114670.0,0.20430353]
[1758519216096,0.77375068,114680.0,114670.0,0.20430353]
[1758519216301,0.49795068,114680.0,114670.0,0.20430353]
[1758519216593,0.77075068,114680.0,114670.0,0.20430353]
[1758519217605,0.77175068,114680.0,114670.0,0.20430353]
[1758519220636,0.77175068,114680.0,114670.0,0.24217637]
[1758519221954,0.77175068,114680.0,114670.0,0.20430353]
[1758519224471,0.49895068,114680.0,114670.0,0.20430353]
[1758519224683,0.77171068,114680.0,114670.0,0.20430353]
[1758519228901,0.49895068,114680.0,114670.0,0.2895732]
[1758519229105,0.77167068,114680.0,114670.0,0.5592732]
[1758519229281,0.77167068,114680.0,114670.0,0.632643]
[1758519231330,0.74544,114680.0,114670.0,0.632643]
[1758519234894,0.74544,114680.0,114670.0,0.5592732]
[1758519241024,0.47272,114680.0,114670.0,0.5592732]
[1758519241232,0.368,114680.0,114670.0,0.5894251]
[1758519241498,0.368,114680.0,114670.0,0.3197251]
[1758519243559,0.367,114680.0,114670.0,0.3197251]
[1758519243751,0.367,114680.0,114670.0,0.3217251]
[1758519243948,0.367,114680.0,114670.0,0.3287251]
[1758519244581,0.367,114680.0,114670.0,0.3039351]
[1758519244785,0.367,114680.0,114670.0,0.3275251]
[1758519250592,0.367,114680.0,114670.0,0.5972251]
[1758519262003,0.39043,114680.0,114670.0,0.5972251]
[1758519262222,0.38975,114680.0,114670.0,0.5972251]
[1758519266200,0.367,114680.0,114670.0,0.67439009]
[1758519271949,0.09432,114680.0,114670.0,0.67439009]
[1758519272385,0.367,114680.0,114670.0,0.67439009]
[1758519272822,0.47249107,114700.0,114690.0,0.17438311]
[1758519272823,0.04987126,114700.0,114690.0,0.17438311]
[1758519273029,0.65919917,114700.0,114690.0,0.17438311]
[1758519273235,0.14483126,114700.0,114690.0,0.26166278]
[1758519273457,0.39318126,114700.0,114690.0,0.26474278]
[1758519273665,0.39318126,114700.0,114690.0,0.28827278]
[1758519273906,0.39061,114700.0,114690.0,0.28827278]
[1758519274108,0.39161,114700.0,114690.0,0.28827278]
[1758519275345,0.11893,114700.0,114690.0,0.28827278]
[1758519275557,0.39161,114700.0,114690.0,0.28827278]
[1758519276197,0.39229,114700.0,114690.0,0.26474278]
[1758519277462,0.39229,114700.0,114690.0,0.53444278]
[1758519278649,0.56665791,114700.0,114690.0,0.53136278]
[1758519279068,0.39229,114700.0,114690.0,0.53136278]
[1758519281020,0.39157,114700.0,114690.0,0.53444278]
[1758519281196,0.39157,114700.0,114690.0,0.55797278]
[1758519281810,0.39157,114700.0,114690.0,0.53444278]
[1758519282014,0.39225,114700.0,114690.0,0.53444278]
[1758519284921,0.56661791,114700.0,114690.0,0.53136278]
[1758519285122,0.8297893,114700.0,114690.0,0.52935278]
[1758519287921,0.65542139,114700.0,114690.0,0.52935278]
[1758519289021,0.65542139,114700.0,114690.0,0.53444278]
[1758519291205,0.38278139,114700.0,114690.0,0.53444278]
[1758519291415,0.11893,114700.0,114690.0,0.58618066]
[1758519291614,0.11893,114700.0,114690.0,0.55797278]
[1758519291822,0.39157,114700.0,114690.0,0.55797278]
[1758519292263,0.41778767,114700.0,114690.0,0.55797278]
[1758519295129,0.41778767,114700.0,114690.0,0.55697278]
[1758519298004,0.68095906,114700.0,114690.0,0.55697278]
[1758519299849,0.85532697,114700.0,114690.0,0.55697278]
[1758519300148,0.68095906,114700.0,114690.0,0.55697278]
[1758519301437,0.68095906,114700.0,114690.0,0.53344278]
[1758519301848,0.68163906,114700.0,114690.0,0.53344278]
[1758519304134,0.68163906,114700.0,114690.0,0.53036278]
[1758519304354,0.59283558,114700.0,114690.0,0.53329278]
[1758519304592,0.85600697,114700.0,114690.0,0.53034278]
[1758519305244,0.68163906,114700.0,114690.0,0.53034278]
[1758519305994,0.68159906,114700.0,114690.0,0.53329278]
[1758519307311,0.40899906,114700.0,114690.0,0.53329278]
[1758519307517,0.68159906,114700.0,114690.0,0.53329278]
[1758519308111,0.40899906,114700.0,114690.0,0.53329278]
[1758519308312,0.68159906,114700.0,114690.0,0.53329278]
[1758519311505,0.68091906,114700.0,114690.0,0.55682278]
[1758519313575,0.65726906,114700.0,114690.0,0.53329278]
[1758519313786,0.68081906,114700.0,114690.0,0.52835278]
[1758519314490,0.68081906,114700.0,114690.0,0.53033278]
[1758519314701,0.68081906,114700.0,114690.0,0.53333278]
[1758519314898,0.68013906,114700.0,114690.0,0.53333278]
[1758519315487,0.41696767,114700.0,114690.0,0.55686278]
[1758519315695,0.41696767,114700.0,114690.0,0.63348962]
[1758519316047,0.68013906,114700.0,114690.0,0.63348962]
[1758519316659,0.68013906,114700.0,114690.0,0.55386278]
[1758519319388,0.40753906,114700.0,114690.0,0.55386278]
[1758519319616,0.68013906,114700.0,114690.0,0.55386278]
[1758519319827,0.65726906,114700.0,114690.0,0.55386278]
[1758519321235,0.68013906,114700.0,114690.0,0.55386278]
[1758519323908,0.41696767,114700.0,114690.0,0.55386278]
[1758519324132,0.68013906,114700.0,114690.0,0.55386278]
[1758519324792,0.94324809,114700.0,114690.0,0.55386278]
[1758519327610,1.117616,114700.0,114690.0,0.37947967]
[1758519327818,1.46684588,114700.0,114690.0,0.2697]
[1758519328022,1.47298533,114700.0,114690.0,0.2697]
[1758519328235,1.38771566,114700.0,114690.0,0.2697]
[1758519328849,1.38771566,114700.0,114690.0,0.269828]
[1758519329256,1.38157621,114700.0,114690.0,0.269828]
[1758519330140,2.02157621,114700.0,114690.0,0.000128]
[1758519330338,2.10684588,114700.0,114690.0,0.000128]
[1758519330551,2.11298084,114700.0,114690.0,0.000128]
[1758519332927,2.90240147,114700.0,114690.0,0.000128]
[1758519333127,3.29506892,114700.0,114690.0,0.000128]
[1758519333531,3.29502892,114700.0,114690.0,0.000128]
[1758519333783,3.30320453,114700.0,114690.0,0.000128]
[1758519333984,3.319556,114700.0,114690.0,0.000128]
[1758519334227,3.31038039,114700.0,114690.0,0.000128]
[1758519334434,3.31538039,114700.0,114690.0,0.000128]
[1758519334883,3.33355123,114700.0,114690.0,0.000128]
[1758519335213,3.32538039,114700.0,114690.0,0.000128]
[1758519335784,3.33354741,114700.0,114690.0,0.000128]
[1758519336603,0.17442874,114660.0,114650.0,0.00306]
[1758519336800,0.79545941,114660.0,114650.0,0.00306]
[1758519336983,1.06805941,114660.0,114650.0,0.0293]
[1758519337348,1.09428748,114660.0,114650.0,0.0293]
[1758519337487,0.82168748,114660.0,114650.0,0.0293]
[1758519337690,1.09428748,114660.0,114650.0,0.0303]
[1758519338779,0.29540706,114660.0,114650.0,0.0303]
[1758519338951,1.09428748,114660.0,114650.0,0.0303]
[1758519340565,0.82168748,114660.0,114650.0,0.0303]
[1758519340979,1.09428748,114660.0,114650.0,0.0303]
[1758519341406,0.82168748,114660.0,114650.0,0.0303]
[1758519341619,1.09428748,114660.0,114650.0,0.20474395]
[1758519342558,0.56800706,114660.0,114650.0,0.20474395]
[1758519342691,1.09428748,114660.0,114650.0,0.20474395]
[1758519344208,0.82168748,114660.0,114650.0,0.20474395]
[1758519344865,1.09432748,114660.0,114650.0,0.20474395]
[1758519345506,1.09432748,114660.0,114650.0,0.0303]
[1758519345881,0.82168748,114660.0,114650.0,0.0303]
[1758519346116,1.09432748,114660.0,114650.0,0.0303]
[1758519346538,0.82168748,114660.0,114650.0,0.20474395]
[1758519346772,1.09432748,114660.0,114650.0,0.20474395]
[1758519349475,0.82168748,114660.0,114650.0,0.20474395]
[1758519349675,1.09432748,114660.0,114650.0,0.20474395]
[1758519351375,1.10043732,114660.0,114650.0,0.20474395]
[1758519352117,1.12301732,114660.0,114650.0,0.20474395]
[1758519353967,0.85037732,114660.0,114650.0,0.20474395]
[1758519354176,1.12301732,114660.0,114650.0,0.20474395]
[1758519356434,1.12301732,114660.0,114650.0,0.0303]
[1758519356638,1.12369732,114660.0,114650.0,0.001]
[1758519361554,0.85105732,114660.0,114650.0,0.001]
[1758519361922,1.12369732,114660.0,114650.0,0.001]
[1758519362422,1.1400534,114660.0,114650.0,0.0031]
[1758519363330,1.12369732,114660.0,114650.0,0.0031]
[1758519365735,0.85105732,114660.0,114650.0,0.0031]
[1758519365939,1.12369732,114660.0,114650.0,0.0031]
[1758519367907,0.5967369,114660.0,114650.0,0.20392395]
[1758519368116,1.12369732,114660.0,114650.0,0.02645]
[1758519368313,1.12369732,114660.0,114650.0,0.0031]
[1758519369091,1.12369732,114660.0,114650.0,0.00613]
[1758519370209,1.12369732,114660.0,114650.0,0.001]
[1758519370824,1.7584362,114660.0,114650.0,0.001]
[1758519371027,1.7588662,114660.0,114650.0,0.001]
[1758519371230,1.76705072,114660.0,114650.0,0.001]
[1758519372828,1.73545205,114660.0,114650.0,0.001]
[1758519374709,2.93542177,114660.0,114650.0,0.001]
[1758519374918,2.119561,114660.0,114650.0,0.001]
[1758519375270,2.119561,114660.0,114620.0,0.03483448]
[1758519375479,0.4376146,114630.0,114620.0,0.03483448]
[1758519375658,0.81068444,114630.0,114620.0,0.03483448]
[1758519375862,0.81068444,114630.0,114620.0,0.03691448]
[1758519376058,0.83691946,114630.0,114620.0,0.03691448]
[1758519376279,0.83691946,114630.0,114620.0,0.21140409]
[1758519376686,0.84551449,114630.0,114620.0,0.21140409]
[1758519376889,0.84551449,114630.0,114620.0,0.02819]
[1758519378114,0.84551449,114630.0,114620.0,0.02919]
[1758519380085,0.57287449,114630.0,114620.0,0.20367961]
[1758519380779,0.84551449,114630.0,114620.0,0.20367961]
[1758519382350,0.12666486,114630.0,114620.0,0.20367961]
[1758519382574,0.66244507,114630.0,114620.0,0.20367961]
[1758519382802,0.83691946,114630.0,114620.0,0.20367961]
[1758519383022,0.66244507,114630.0,114620.0,0.20367961]
[1758519383263,0.12666486,114630.0,114620.0,0.33411224]
[1758519383495,0.36696,114630.0,114620.0,0.33411224]
[1758519383966,0.69746021,114650.0,114640.0,0.17445917]
[1758519384191,1.00245552,114650.0,114640.0,0.17653917]
[1758519384412,1.00245552,114650.0,114640.0,0.20264917]
[1758519384642,0.66253552,114650.0,114640.0,0.20264917]
[1758519385804,0.66449552,114650.0,114640.0,0.20264917]
[1758519386029,0.39181552,114650.0,114640.0,0.20264917]
[1758519386263,0.8328154,114650.0,114640.0,0.20264917]
[1758519386710,0.83304293,114650.0,114640.0,0.20264917]
[1758519387162,0.65859898,114650.0,114640.0,0.20264917]
[1758519387380,0.38591898,114650.0,114640.0,0.20264917]
[1758519387653,0.65863898,114650.0,114640.0,0.20264917]
[1758519388759,0.83308293,114650.0,114640.0,0.20264917]
[1758519392607,0.65863898,114650.0,114640.0,0.20264917]
[1758519392815,0.39527124,114650.0,114640.0,0.20264917]
[1758519393041,0.83308293,114650.0,114640.0,0.20264917]
[1758519393248,0.12255124,114650.0,114640.0,0.20264917]
[1758519393455,0.65859898,114650.0,114640.0,0.20264917]
[1758519393664,0.66059898,114650.0,114640.0,0.20264917]
[1758519394289,0.83504293,114650.0,114640.0,0.20264917]